Cogmind - Beta 11.1 *** ADVENTURER MODE // 2022.07.28 @ 11:14:22 Player: JRAFF Result: Destroyed by G-47 Trooper with Particle Gun Performance ------------- Evolutions (2) 1000 Regions Visited (6) 1200 Robots Destroyed (41) 205 Value Destroyed (879) 879 Prototype IDs (4) 80 Alien Tech Used (0) 0 Bonus (300) 300 TOTAL SCORE: 3664 Bonus ------- Aligned with FarCom 300 Cogmind --------- Core Integrity 0/550 Matter 223/300 Energy 100/100 System Corruption 0% Temperature Cool (18) Movement Core (200) Ox3 Location -8/Materials Parts ------- > --- POWER (2) -------- (None) > --- PROPULSION (4) --- (None) > --- UTILITY (3) ------ Medium Storage Unit > --- WEAPON (2) ------- (None) > --- INVENTORY (10) --- Aluminum Leg Heat Sink Improved Heat Sink Improved Heat Sink Improved Heat Sink Improved Heat Sink Terrain Scan Processor Improved Light Armor Plating Improved Medium Armor Plating Datajack Peak State ------------ > --- POWER ------------ Light Ion Engine > --- PROPULSION ------- Flight Unit Flight Unit > --- UTILITY ---------- Medium Storage Unit Modified TNC 0b10 Alert Chip > --- WEAPON ----------- Heavy Particle Gun Heavy Particle Gun > --- INVENTORY -------- Improved Heat Sink Small Battery Small Battery Light Armor Plating Light Armor Plating Chronowheel Missile Launcher Datajack [Rating: 26] Favorites ----------- Power Light Ion Engine Engine Light Ion Engine Power Core Micro Nuclear Core Propulsion Flight Unit Leg Aluminum Leg Hover Unit Hover Unit Flight Unit Flight Unit Utility Medium Storage Unit Device Improved Heat Sink Storage Medium Storage Unit Processor Modified TNC Protection Light Armor Plating Weapon Heavy Particle Gun Energy Gun Heavy Particle Gun Launcher Missile Launcher Special Melee Weapon Datajack Build | -11 -10 -9 -9 -9 -8 -8 ------- Run | Scr Mat Mat Min Exi Min Mat Slots Evolved 4 | . . 2 . . . 2 Power 1 | . . 1 . . . . Propulsion 2 | . . . . . . 2 Utility 1 | . . 1 . . . . Weapon . | . . . . . . . Parts Attached 89 | 6 9 14 9 4 6 41 Power 16 | 1 1 2 2 . 3 7 Engine 14 | 1 1 2 1 . 3 6 Core 2 | . . . 1 . . 1 Reactor . | . . . . . . . Propulsion 23 | 2 3 1 3 . 1 13 Treads . | . . . . . . . Leg 4 | 2 . . 1 . . 1 Wheel . | . . . . . . . Hover 4 | . 3 1 . . . . Flight 15 | . . . 2 . 1 12 Utility 31 | 1 5 8 2 2 2 11 Device 9 | . 1 2 1 . . 5 Storage 11 | 1 4 4 1 . . 1 Processor 2 | . . . . 2 . . Hackware . | . . . . . . . Protection 9 | . . 2 . . 2 5 Artifact . | . . . . . . . Weapon 19 | 2 . 3 2 2 . 10 Energy Gun 15 | 2 . 3 2 2 . 6 Energy Cannon . | . . . . . . . Ballistic Gun . | . . . . . . . Ballistic Cannon . | . . . . . . . Launcher 3 | . . . . . . 3 Special Weapon . | . . . . . . . Impact Weapon . | . . . . . . . Slashing Weapon . | . . . . . . . Piercing Weapon . | . . . . . . . Special Melee Weapon 1 | . . . . . . 1 Unidentified Prototypes 4 | . . 1 . 3 . . Corrupted Parts 1 | . . . 1 . . . System Corruption 1 | . . . 1 . . . Parts Lost 25 | . . . 6 . . 19 Power 8 | . . . 3 . . 5 Propulsion 8 | . . . 2 . . 6 Utility 4 | . . . 1 . . 3 Weapon 5 | . . . . . . 5 Highest Loss Streak 9 | . . . 3 . . 9 To Critical Strikes . | . . . . . . . Average Slot Usage (%) 82 | . 95 99 79 76 97 70 Engine 12 | . 14 22 4 11 19 9 Core 1 | . . . 8 . . . Leg 1 | . 2 . 6 . . . Hover 4 | . 25 22 2 . . . Flight 15 | . . . 3 22 22 20 Device 4 | . 2 5 10 7 . 2 Storage 16 | . 21 22 22 18 11 12 Processor 4 | . . . . 2 11 8 Protection 2 | . . 5 . . 11 2 Energy Gun 17 | . 28 21 21 13 22 13 Naked Turns . | . . . . . . . Heaviest Build 31 | 10 13 31 27 19 25 30 Greatest Support 20 | 20 20 13 13 8 8 16 Greatest Overweight (x) 8 | . 1 2 8 2 3 7 Average Overweight (x) 1 | . . 1 1 1 2 1 Largest Inventory Capacity 10 | 8 8 10 10 10 10 10 Average Capacity 9 | 6 8 8 8 10 10 10 Most Carried 10 | 5 8 9 8 9 9 10 Average Carried 6 | 2 6 7 7 6 6 7 Final Capacity 10 | 8 8 8 10 10 10 10 Final Carried 10 | 1 7 8 6 7 8 10 Class Distribution -------------------- 52% | Mutant 44% | Scavenger-Mutant 3% | Scavenger-Skirmisher Dominant Class ---------------- Mutant | -10/Materials Mutant | -9/Materials Mutant | -9/Mines Scavenger-Mutant | -9/Exiles Scavenger-Mutant | -8/Mines Scavenger-Mutant | -8/Materials Resources | -11 -10 -9 -9 -9 -8 -8 ----------- Run | Scr Mat Mat Min Exi Min Mat Matter Collected 1104 | 216 91 148 77 . 210 362 Remotely . | . . . . . . . Salvage Created 1135 | . 112 114 295 . 246 368 Parts 81 | . 7 5 15 . 23 31 Haulers Intercepted . | . . . . . . . Recyclers Shooed . | . . . . . . . Parts Field Recycled . | . . . . . . . Retrieved Matter . | . . . . . . . Parts Self-Destructed . | . . . . . . . Prevented . | . . . . . . . Kills | -11 -10 -9 -9 -9 -8 -8 ------- Run | Scr Mat Mat Min Exi Min Mat Combat Hostiles Destroyed 31 | . 2 2 8 . 3 16 Guns 27 | . 2 2 7 . 3 13 AOE 3 | . . . . . . 3 Classes Destroyed 9 | . 2 1 3 . 2 1 Worker 2 | . . . 1 . . 1 Builder 4 | . . . . . 3 1 Recycler 2 | . . . . . 2 . Watcher 2 | . 1 . . . . 1 Swarmer 17 | . . . 3 . 3 11 Grunt 7 | . 2 . 3 . . 2 Brawler 2 | . . . 2 . . . Sentry 4 | . . 2 . . . 2 Hunter 1 | . . . . . . 1 Best Kill Streak 4 | . 3 1 4 . 4 4 Combat Bots Only 4 | . 2 1 3 . 3 4 Max Kills in Single Turn 2 | . 1 1 2 . 1 1 Gunslinging . | . . . . . . . Exploded 1 | . . . . . . 1 Melee . | . . . . . . . Uniques/NPCs Destroyed . | . . . . . . . Combat | -11 -10 -9 -9 -9 -8 -8 -------- Run | Scr Mat Mat Min Exi Min Mat Damage Taken 3527 | . 121 149 563 . 69 2625 Core 764 | . 31 10 153 . 12 558 Absorbed by Shields . | . . . . . . . Regen/Repaired (Parts) 36 | . . 36 . . . . Core Remaining (%) 81 | 100 87 . . . 56 . Volleys Fired 121 | . 11 6 22 . 15 67 Largest 2 | . 2 2 2 . 1 2 Hottest 128 | . 80 80 110 . 55 128 Shots Fired 188 | . 22 12 43 1 15 95 Gun 179 | . 22 12 43 1 15 86 Cannon . | . . . . . . . Launcher 9 | . . . . . . 9 Special . | . . . . . . . Kinetic . | . . . . . . . Thermal 179 | . 22 12 43 1 15 86 Explosive 9 | . . . . . . 9 Electromagnetic . | . . . . . . . Robot Hit Streak 16 | . 16 9 14 . 9 16 Robot Miss Streak 4 | . 1 1 4 . 1 2 Penetration Max . | . . . . . . . Secondary Targets 4 | . 1 . 3 . . . Max Gunslinging Chain 1 | . 1 . 1 . . . Shots Hit Robots 138 | . 19 9 29 . 13 68 Core Hits 55 | . 7 4 9 . 8 27 Critical Kills . | . . . . . . . Critical Parts Destroyed . | . . . . . . . Critical Strikes 6 | . . . 5 . . 1 Burn 6 | . . . 5 . . 1 Melee Attacks 1 | . . . . . . 1 Impact . | . . . . . . . Slashing . | . . . . . . . Piercing . | . . . . . . . Sneak Attacks . | . . . . . . . Combat Hostiles . | . . . . . . . Follow-up Attacks . | . . . . . . . Damage Inflicted 2621 | . 211 96 552 . 265 1497 Guns 2114 | . 211 96 552 . 265 990 Cannons . | . . . . . . . Explosions 502 | . . . . . . 502 Melee . | . . . . . . . Ramming 5 | . . . . . . 5 Kinetic . | . . . . . . . Thermal 2114 | . 211 96 552 . 265 990 Explosive 502 | . . . . . . 502 Electromagnetic . | . . . . . . . Impact . | . . . . . . . Slashing . | . . . . . . . Piercing . | . . . . . . . Highest Corruption 3 | . 1 . 3 3 3 . Average Corruption 2 | . 1 . 2 3 3 . Corruption Purged . | . . . . . . . Corruption Blocked . | . . . . . . . Effects 51 | . 1 . 13 26 11 . Message Errors 9 | . . . . 6 3 . Matter Fused 12 | . 1 . 4 4 3 . Heat Flow Errors 7 | . . . 3 3 1 . Energy Discharges 5 | . . . 1 4 . . Data Loss (minor) 7 | . . . 1 4 2 . Data Loss (major) 5 | . . . 2 2 1 . Misfires 1 | . . . . 1 . . Alerts 4 | . . . 1 2 1 . Weapon Failures 1 | . . . 1 . . . Overload Shots . | . . . . . . . Overflow Damage 7 | . . . . . . 7 Projectiles . | . . . . . . . Explosions 7 | . . . . . . 7 Melee . | . . . . . . . Knockbacks . | . . . . . . . Impact . | . . . . . . . Kinetic . | . . . . . . . Secondary . | . . . . . . . Self-Inflicted Damage 2 | . . . . . . 2 Shots . | . . . . . . . Rammed 1 | . . . . . . 1 Targets Rammed 1 | . . . . . . 1 Kicked . | . . . . . . . Crushed . | . . . . . . . Highest Temperature 384 | . 181 87 282 94 211 384 Average Temperature 88 | . 66 40 94 44 45 116 Received Heat Transfer 1512 | . 105 72 156 . . 1179 Effects 3 | . . . . . 2 1 Shutdowns 1 | . . . . . . 1 Interference 2 | . . . . . 2 . Siege Activations . | . . . . . . . Robots Corrupted . | . . . . . . . Combat Hostiles . | . . . . . . . Parts Fried . | . . . . . . . Impact Corruptions . | . . . . . . . Robots Melted 1 | . . . 1 . . . Combat Hostiles 1 | . . . 1 . . . Parts Melted 8 | . 1 . 4 . . 3 Heat Transferred 4733 | . 475 225 1443 . 481 2109 Parts Sabotaged . | . . . . . . . Parts Stolen . | . . . . . . . Parts Stripped . | . . . . . . . Power Chain Reactions . | . . . . . . . Missiles Intercepted . | . . . . . . . Alert | -11 -10 -9 -9 -9 -8 -8 ------- Run | Scr Mat Mat Min Exi Min Mat Peak Influence 328 | . 57 140 120 . 70 328 Initial 20 | . . 20 . . . 7 Average 70 | . 37 34 51 . 27 130 Maximum Alert Level 1 | . . . . . . 1 Low Security (%) 93 | 100 100 100 100 . 100 80 Level 1 6 | . . . . . . 19 Level 2 . | . . . . . . . Level 3 . | . . . . . . . Level 4 . | . . . . . . . Level 5 . | . . . . . . . High Security . | . . . . . . . Max Security . | . . . . . . . Squads Dispatched 4 | . . . . . 1 3 Investigation . | . . . . . . . Extermination . | . . . . . . . Reinforcement 3 | . . . . . 1 2 Assault . | . . . . . . . Garrison 1 | . . . . . . 1 Intercept . | . . . . . . . Searches Triggered . | . . . . . . . Construction Impeded 2 | . . . . . 1 1 Haulers Reinforced . | . . . . . . . Active Scanning Responses . | . . . . . . . Cargo Convoy Interrupts . | . . . . . . . Stealth | -11 -10 -9 -9 -9 -8 -8 --------- Run | Scr Mat Mat Min Exi Min Mat Distress Signals 2 | . . . . . . 2 Communications Jammed . | . . . . . . . Distress Signals . | . . . . . . . Times Spotted 51 | . 4 4 11 . 3 29 Peak Tracking Total 7 | . 3 1 3 . 3 7 Tactical Retreats 4 | . . 1 1 . . 2 Traps | -11 -10 -9 -9 -9 -8 -8 ------- Run | Scr Mat Mat Min Exi Min Mat Traps Triggered 6 | . 1 1 2 . . 2 Indirectly . | . . . . . . . Trap Hack Attempts . | . . . . . . . Triggered . | . . . . . . . Disarmed . | . . . . . . . Reprogrammed . | . . . . . . . Reused . | . . . . . . . Traps Extracted . | . . . . . . . Installed . | . . . . . . . Triggered . | . . . . . . . Machines | -11 -10 -9 -9 -9 -8 -8 ---------- Run | Scr Mat Mat Min Exi Min Mat Machines Disabled 5 | . . . 1 . . 4 Max in Single Turn 1 | . . . 1 . . 1 Machines Sabotaged . | . . . . . . . Garrisons Compromised . | . . . . . . . Overloaded Fab Kills . | . . . . . . . Hacking | -11 -10 -9 -9 -9 -8 -8 --------- Run | Scr Mat Mat Min Exi Min Mat Machines Accessed 8 | . 1 2 1 3 . 1 Terminals 2 | . 1 1 . . . . Fabricators . | . . . . . . . Repair Stations 1 | . . 1 . . . . Recycling Units . | . . . . . . . Scanalyzers 1 | . . . . . . 1 Garrison Access . | . . . . . . . Total Hacks 34 | . 2 3 1 26 . 2 Successful 34 | . 2 3 1 26 . 2 Failed . | . . . . . . . Catastrophic . | . . . . . . . Database Lockouts . | . . . . . . . Manual 1 | . . . . 1 . . Terminals 3 | . 2 1 . . . . Fabricators . | . . . . . . . Repair Stations 2 | . . 2 . . . . Recycling Units . | . . . . . . . Scanalyzers 2 | . . . . . . 2 Garrison Access . | . . . . . . . Terminal Hacks 30 | . 2 1 1 26 . . Record 27 | . 1 . . 26 . . Open Door 1 | . . . 1 . . . Emergency Access Points 1 | . 1 . . . . . Alert Level 1 | . . 1 . . . . Fabricator Hacks . | . . . . . . . Repair Station Hacks 2 | . . 2 . . . . Scan Component 1 | . . 1 . . . . Repair 1 | . . 1 . . . . Recycling Unit Hacks . | . . . . . . . Scanalyzer 2 | . . . . . . 2 Insert Component 1 | . . . . . . 1 Analyze 1 | . . . . . . 1 Garrison Access Hacks . | . . . . . . . Unauthorized Hacks . | . . . . . . . Terminals . | . . . . . . . Fabricators . | . . . . . . . Repair Stations . | . . . . . . . Recycling Units . | . . . . . . . Scanalyzers . | . . . . . . . Garrison Access . | . . . . . . . Data Cores Recovered . | . . . . . . . Used . | . . . . . . . Hacking Detections 1 | . . . . . . 1 Full Trace Events . | . . . . . . . Feedback Events . | . . . . . . . Feedback Blocked . | . . . . . . . Robot Schematics Acquired . | . . . . . . . Robots Built . | . . . . . . . Authchips . | . . . . . . . Time . | . . . . . . . Total Robot Build Rating . | . . . . . . . Part Schematics Acquired 1 | . . . . . . 1 Parts Built . | . . . . . . . Authchips . | . . . . . . . Time . | . . . . . . . Total Part Build Rating . | . . . . . . . Parts Repaired 1 | . . 1 . . . . Time 26 | . . 26 . . . . Parts Recycled . | . . . . . . . Recycled Matter . | . . . . . . . Retrieved Matter . | . . . . . . . Retrieved Components . | . . . . . . . Parts Scanalyzed 1 | . . . . . . 1 Part Schematics Acquired 1 | . . . . . . 1 Parts Damaged . | . . . . . . . Bothacking | -11 -10 -9 -9 -9 -8 -8 ------------ Run | Scr Mat Mat Min Exi Min Mat Used RIF Installer . | . . . . . . . Robots Hacked 1 | . . . . . . 1 Non-combat . | . . . . . . . Combat 1 | . . . . . . 1 Robot Hacks Applied 1 | . . . . . . 1 parse_system 1 | . . . . . . 1 Relay Couplers Released . | . . . . . . . Fabnet Peak Effective % . | . . . . . . . Robots Rewired . | . . . . . . . Allies Hacked . | . . . . . . . Hacks Repelled . | . . . . . . . Allies | -11 -10 -9 -9 -9 -8 -8 -------- Run | Scr Mat Mat Min Exi Min Mat Total Allies . | . . . . . . . Largest Group . | . . . . . . . Highest-Rated Group . | . . . . . . . Highest-Rated Ally . | . . . . . . . Total Orders . | . . . . . . . Ally Attacks . | . . . . . . . Total Damage . | . . . . . . . Kills . | . . . . . . . Allies Corrupted . | . . . . . . . Allies Melted . | . . . . . . . Intel | -11 -10 -9 -9 -9 -8 -8 ------- Run | Scr Mat Mat Min Exi Min Mat Robot Analysis Total . | . . . . . . . Derelict Logs Recovered . | . . . . . . . Drone Launches . | . . . . . . . Drone Recoveries . | . . . . . . . Exploration | -11 -10 -9 -9 -9 -8 -8 ------------- Run | Scr Mat Mat Min Exi Min Mat Turns Passed 5037 | 52 261 578 710 1295 788 1353 Spaces Moved 2645 | 40 201 424 328 664 295 693 Core 58 | 12 . . 6 . . 40 Treads . | . . . . . . . Legs 315 | 28 13 . 210 . . 64 Wheels . | . . . . . . . Hover 674 | . 188 424 62 . . . Flight 1598 | . . . 50 664 295 589 Fastest Speed 50 | 50 56 116 116 117 197 99 Average Speed 168 | 99 99 116 190 193 252 155 Slowest Speed 520 | 120 130 176 450 197 277 520 Overloaded Moves . | . . . . . . . Propulsion Burnouts . | . . . . . . . Robots Hopped . | . . . . . . . Cave-ins Triggered . | . . . . . . . Time Travels 1 | . . . . 1 . . Exploration Rate (%) 40 | 4 35 22 50 92 57 26 Regions Visited 6 Branch Regions 3 Pre-discovered Areas 1 | . . . 1 . . . Known Exits Taken . | . . . . . . . Unknown Exits Taken 6 | 1 1 1 1 1 1 . Scrap Searched 1 | . . . . . 1 . Spaces Dug . | . . . . . . . Terrain Destroyed 82 | . . . . . . 82 Melee . | . . . . . . . Projectile . | . . . . . . . AOE 82 | . . . . . . 82 Terrain Rammed . | . . . . . . . Walls Destroyed . | . . . . . . . Machines Disabled . | . . . . . . . Actions | -11 -10 -9 -9 -9 -8 -8 --------- Run | Scr Mat Mat Min Exi Min Mat Total 3034 | 52 241 500 372 675 324 870 Wait 42 | . . 24 . . . 18 Move 2639 | 39 200 423 327 663 294 693 Hop . | . . . . . . . Pick Up 86 | 7 14 18 8 4 6 29 Fast Attach 6 | . . 1 . . . 5 Attach 40 | 6 2 3 6 4 2 17 Detach 9 | . . 1 . 3 . 5 Swap 43 | . 7 10 3 . 4 19 Drop 46 | . 7 14 6 1 3 15 Fire 121 | . 11 6 22 . 15 67 Melee 1 | . . . . . . 1 Ram 1 | . . . . . . 1 Kick . | . . . . . . . Crush . | . . . . . . . Escape Stasis . | . . . . . . . Rewire . | . . . . . . . Trap . | . . . . . . . Miscellaneous . | . . . . . . . Route ------- -11/Scrapyard -10/Materials (discovered 2 exits: *Mat / [*Min]) -9/Materials -9/Mines (discovered 2 exits: *Mat / *Exi) -9/Exiles -8/Mines -8/Materials History --------- Turn | Location | Event 16 | -11/Scrapyard | Discovered new exit (range 16) 53 | -11/Scrapyard | Entered Materials 98 | -10/Materials | Discovered new exit (range 16) 261 | -10/Materials | Discovered new exit (range 13) 302 | -10/Materials | Build established: Mutant 314 | -10/Materials | Entered another Materials area 314 | -9/Materials | Evolved 2 slots: Power x1, Utility x1 358 | -9/Materials | Repaired Sml. Laser 586 | -9/Materials | Discovered new exit (range 6) 892 | -9/Materials | Entered Mines 924 | -9/Mines | Met a Derelict who couldn't figure out how to use a Trap Extractor 1055 | -9/Mines | Lost 3 parts (1p1n1u) 1262 | -9/Mines | Discovered new exit (range 4) 1263 | -9/Mines | Learned location of Storage (-9) 1587 | -9/Mines | Deemed a non-threat by the Exiles lab entrance 1590 | -9/Mines | Discovered new exit (range 5) 1602 | -9/Mines | Entered Exiles 1673 | -9/Exiles | Met 8R-AWN 1734 | -9/Exiles | Met EX-HEX 1824 | -9/Exiles | Build established: Scavenger-Mutant 1846 | -9/Exiles | Met EX-DEC 1895 | -9/Exiles | Visited The Gauntlet 2319 | -9/Exiles | Met EX-BIN 2396 | -9/Exiles | Aligned with FarCom system 2398 | -9/Exiles | Given EX-Vault access code 2552 | -9/Exiles | Opened EX-Vault 2559 | -9/Exiles | Found Prototype Processor 2560 | -9/Exiles | Identified Modified TNC 2566 | -9/Exiles | Found Prototype Processor 2567 | -9/Exiles | Identified 0b10 Alert Chip 2574 | -9/Exiles | Found Prototype Device 2576 | -9/Exiles | Identified Chronowheel 2576 | -9/Exiles | Activated Chronowheel 2576 | -9/Exiles | Spacetime reconverged on an earlier point 2619 | -9/Exiles | Warned to stay clear of 0b10 Research branches 2843 | -9/Exiles | Build established: Mutant 2867 | -9/Exiles | Discovered new exit (range 10) 2897 | -9/Exiles | Left Exiles lab with Modified TNC 2897 | -9/Exiles | Entered Mines 3375 | -8/Mines | Build established: Scavenger-Mutant 3583 | -8/Mines | Discovered new exit (range 5) 3685 | -8/Mines | Entered Materials 3685 | -8/Materials | Evolved 2 slots: Propulsion x2 4058 | -8/Materials | Garrison activated, responded to threat 4311 | -8/Materials | Lost 4 parts (2p2n) 4388 | -8/Materials | Lost 3 parts (2n1w) 4556 | -8/Materials | Core integrity fell below 50% 4608 | -8/Materials | Build established: Mutant 5012 | -8/Materials | Core integrity fell below 20% 5038 | -8/Materials | Destroyed by G-47 Trooper with Particle Gun Last Messages --------------- ALERT: Hostiles spotted, dispatching reinforcements to Terminal M001. Sml. Battery destroyed. Lgt. Ion Engine destroyed. Acquired Imp. Medium Armor Plating. Critical hit (Burn: +37). Acquired Imp. Medium Armor Plating. Pulse Rifle destroyed. Discarded Modified TNC. Acquired Imp. Medium Armor Plating. Critical hit (Burn: +37). Lgt. Ion Engine destroyed. Use the buttons at the bottom right of the parts list, or press c/e/w/q, to visualize various stats related to parts and inventory items. Flight Unit destroyed. Imp. Medium Armor Plating destroyed. R-06 Scavenger collects Unknown Wheel. Particle Gun destroyed. Flight Unit destroyed. Critical hit (Burn: +37). Imp. Medium Armor Plating destroyed. Map ----- +----------------------------------------------------+ | ?????????????????????????????????????????????????? | | ?????????????????????????????????????????????????? | | ?????????????????????????????????????????????????? | | ???????????????????????##+####???????????????????? | | ???????????????????????? # ??????????????????? | | ???????????????????????? # ??????????????????? | | ???????????????????????? /???????????????????? | | ???????????????????????? #???????????????????? | | ????????????????????????! #???????????????????? | | ????????????????????????# ##???????????????????? | | ????????????????????#####g ##???????????????????? | | ????????????????????#!! ##???????????????????? | | ????????????????????#!! ##???????????????????? | | ????????????????????#!! ##???????????????????? | | ????????????????????#!! ##???????????????????? | | ????????????????????# ! ##??######???????????? | | ????????????????????# ##? #??????????? | | ????########???????###### ## #??????????? | | ????################ # # ## #??????????? | | ????## ############## gg# #??????????? | | ????## gg # #??????????? | | ????## w + ! ???????? | | ????## # #??????????? | | ????## ###+########## # #??????????? | | ????### ## ## ! ###########??????????? | | ????### ## ##@^^# ##????????????? | | ?????## ## ## ^^# ! ##????????????? | | ??????# ## """ "" ## # ##????????????? | | ??????# ## """""" + + ##????????????? | | ??????# ## """"" ## # ##????????????? | | ??????# ## ### ##! ##????????????? | | ??????# ############## # ##########????????????? | | ??????# # #### # # ######????????????? | | ??????# # """ #?## ## # #?????????????????? | | ??????# # """ #?#*### # ##?????????????????? | | ??????# %# !"" #??# #=# #??????????????????? | | ??????# /* *= #??#### ####??????????????????? | | ??????# #[ [" #????## ##????????????????????? | | ??????# ### """ #????## ##????????????????????? | | ??????# #?# """ #????## ##????????????????????? | | ??????# #?# *!#????## ##????????????????????? | | ??????# ################## ##????????????????????? | | ??????# ## ### ##????????????????????? | | ??????# ## ### ####??????????????????? | | ??????# ## """"" ### ####??????????????????? | | ??????# ## """"" "" ### ##??????????????????? | | ??????# + """ " S"" + ##??????????????????? | | ???####+## "" ### ##??????????????????? | | ???# #######+######### ##??????????????????? | | ???# [ #??## ####### ##??????????????????? | +----------------------------------------------------+ Best States ------------- Heat Dissipation 45 Energy Generation 22 Energy Capacity 515 Matter Stores 300 Matter Capacity 300 Sight Range 16 Terrain Scan Density 10 ECM Strength 1 Armor Coverage 450 Resistance: KI 20 Resistance: TH 20 Resistance: EX 20 Resistance: EM 20 Resistance: I 20 Resistance: S 20 Resistance: P 20 Evasion (%) 55 Offensive Hacking 10 Item Schematics ----------------- Surge Thruster | -8/Materials | Scanalyzed Robot Schematics ------------------ None Fabricated ------------ Nothing Alien Tech Used ----------------- None Achievements -------------- It's Just You Librarian Part-time Mechanic Risk Taker Safety First Tourist Troublemaker Challenges ------------ None Game ------ Seed GuidanceWardroneRedirector Manual? 0 Play Time 01:49:14 Cumulative 7.2 hours Start 2022.07.27 @ 12:16:25 End 2022.07.28 @ 11:14:22 Sessions 3 Manual Loads 0 Difficulty Adventurer Special Mode None Game No. 5 Rogue 3 Adventurer 2 Explorer 0 Win Type - Total 0 Types 0/0/0/0/0/0/0/0/0 Lore% 6 Gallery% 8 Achievement% 5 Wizard Run 0 Options --------- ASCII 0 Keyboard 0 Movement Arrows Keybinds 0 Fullscreen 0 Font 20/SmallcapsGlow Map View 76x50 Tactical HUD 0 Map Filters NONE Filters NONE Steam 1 RUN: b371cee1-c68b-45bd-bec6-bf234db84a26